{"text_format":"1","workbook":"xlsx","n_sheets":1,"sheets":["Tabelle1"],"not_rendered":{"charts":0,"images":1,"macros":1,"external_links":0,"defined_names":7,"comments":0,"pivot_tables":0},"unopened":[],"bounds":{"document_bytes":16777216,"sheet_cells":100000,"rows_first":2000,"rows_last":500,"rows_between":2000,"halvings":0,"cell_chars":16384,"cell_head_chars":4096},"cells_cut":0,"cells_raw":0,"read":"whole","date_system":"1900"}

{"sheet":"Tabelle1","index":0,"n_rows":149,"n_cols":52,"rows_kept":149,"cut":false,"hidden":false,"merged":[[2,6,2,8],[3,6,3,8],[59,1,60,3],[59,4,60,4],[52,6,57,6],[52,7,52,10],[53,7,53,10],[54,7,54,10],[38,10,38,11],[40,2,40,4],[41,2,41,4],[42,2,42,4],[43,2,43,4],[38,6,38,7],[34,2,34,4],[38,1,39,4],[54,12,55,13],[55,7,55,10],[56,7,56,10],[56,12,56,13],[57,7,57,10],[23,8,23,9],[38,5,39,5],[49,2,49,4],[38,8,38,9],[44,2,44,4],[45,2,45,4],[46,2,46,4],[47,2,47,4],[48,2,48,4],[15,2,15,4],[16,2,16,4],[23,1,24,4],[23,5,24,5],[23,6,23,7],[5,26,5,27],[5,28,5,29],[7,24,7,25],[7,2,7,4],[6,2,6,4],[4,22,4,23],[4,24,4,25],[5,2,5,6],[5,8,5,9],[5,10,5,11],[5,12,5,13],[5,14,5,15],[5,22,5,23],[5,24,5,25],[33,2,33,4],[0,1,0,13],[2,9,2,10],[2,11,2,13],[1,6,1,8],[1,3,1,4],[2,3,2,4],[8,2,8,4],[9,2,9,4],[10,2,10,4],[11,2,11,4],[12,2,12,4],[13,2,13,4],[23,10,23,11],[25,2,25,4],[14,2,14,4],[3,11,3,13],[3,9,3,10],[65,1,65,3],[66,1,66,3],[20,6,20,9],[61,1,61,3],[62,1,62,3],[63,1,63,3],[64,1,64,3],[31,2,31,4],[26,2,26,4],[27,2,27,4],[28,2,28,4],[29,2,29,4],[30,2,30,4],[32,2,32,4]]}
[null,"Prüfung § 6 Absatz 4 (170 kg N/ha aus organischer Düngung Kontrollwert) im Kalenderjahr",null,null,null,null,null,null,null,null,null,null,null,null,null,null,null,null,null,null,1,2,3,4,5,6,7,8,9,10,11]
[null,null,"Betrieb:",null,null,"Strasse:"]
[null,null,"Name:",null,null,"PLZ:",null,null,null,"Kalenderjahr:"]
[null,null,null,null,null,"Wohnort:",null,null,null,"Hektar:\n(Acker- und Grünlandfläche) "]
[null,null,null,null,null,null,null,null,null,null,null,null,null,null,null,null,null,null,null,null,null,null,"Anlage 1 Tabelle 1",null,"Anlage 1 Tabelle 2",null,null,null,null,null,null,null,1,2,3,4,5,6,7,8,9,10,11,12,13,14,15,16,17,18,19,20]
[null,null,"Anfall organischer Stickstoff- und \nPhosphormengen aus der eigenen Tierhaltung",null,null,null,null,"Anteil","170 kg N/ha Regel\nnach Abzug der Stall-, \nLagerungs- und Weideverluste",null,"kg/Tierplatz oder Tier",null,"kg Betrieb",null,"Weidehaltung",null,"nach Abzug der\nVerluste aus Weidehaltung",null,null,null,null,null,"Mittlere Nährstoffausscheidung \nlandwirtschaftlicher Nutztiere \nje Stallplatz und Jahr bzw. je \nTier und Jahr",null,"Mittlere Nährstoffaufnahme von \nWiederkäuern aus Grobfutter je \nStallplatz und Jahr bzw. je Tier \nund Jahr",null,170,null,"NV",null,null,null,"Düngemittel","€/dt","TS","N","NH3 N","Amid N","P2O5","K2O","MgO","S","CaO \nAckerland","CaO \nGrünland","basisch wirksame\nBestandteilekg/m3","Anrechnung \n170 kg/ha","Anrechnung \nNährstoffbilanz","Aufnahme fremder \nWD im Betrieb","Mindestanrechnung \nAnwendungsjahr\nAcker","Mindestanrechnung \nAnwendungsjahr\nGrünland"]
[null,null,"Tierart",null,null,"Tieranzahl","Dungart","Weide","% N","kg N","kg N","kg P2O5","kg N","kg P2O5","kg N","kg P2O5","kg N",null,null,null,null,null,"N","P2O5","N","P2O5","Gülle","Mist","Gülle","Mist","Weide",null,"Rindergülle",null,8.2899999999999991,4,1.8,null,1.6,4.3,1,0.4,0.4,{"$f":"-AL7","v":0},{"$f":"-AL7","v":0},1.9,0.85,0.85,1,0.6,0.5,1]
[null,1,null,null,null,null,null,null,{"$f":"IF(G8=\"\",0,IF(G8=\"Gülle\",VLOOKUP($C8,Nutztierdaten,7,0),VLOOKUP($C8,Nutztierdaten,8,0)))","v":0},{"$f":"IF(I8=0,\"\",IF(C8=\"\",\"\",(M8-O8)*I8)+Q8)","v":""},{"$f":"IF(C8=\"\",\"\",VLOOKUP(C8,Nutztierdaten,3,0))","v":""},{"$f":"IF(C8=\"\",\"\",VLOOKUP(C8,Nutztierdaten,4,0))","v":""},{"$f":"IF(C8=\"\",\"\",F8*K8)","v":""},{"$f":"IF(C8=\"\",\"\",F8*L8)","v":""},{"$f":"IF(M8=\"\",\"\",M8*H8)","v":""},{"$f":"IF(N8=\"\",\"\",N8*H8)","v":""},{"$f":"IF(M8=\"\",\"\",(M8*H8)*VLOOKUP(C8,Nutztierdaten,11,0))","v":""},null,null,null,null,null,"kg","kg","je Stallplatz und Jahr",null,0.85,0.7,0.7,0.6,0.7,null,"Milchviehgülle",null,8.93,3.6,2,null,1.8,4.0999999999999996,null,0.4,0.4,{"$f":"-AL8","v":0},{"$f":"-AL8","v":0},1.8,0.85,0.85,1,0.6,0.5,1]
[null,2,null,null,null,null,null,null,0,{"$f":"IF(I9=0,\"\",IF(C9=\"\",\"\",(M9-O9)*I9)+Q9)","v":""},"","",{"$f":"IF(C9=\"\",\"\",F9*K9)","v":""},{"$f":"IF(C9=\"\",\"\",F9*L9)","v":""},{"$f":"IF(M9=\"\",\"\",M9*H9)","v":""},"","",null,null,null,"Kälberaufzucht",null,16.600000000000001,6.4,5.6,2,0.85,0.7,0.7,0.6,0.7,"Mist","Jungvieh/Bullengülle",null,7.23,3.4,1.8,null,1.4,3.8,null,null,null,0,0,1.4,0.85,0.85,1,0.6,0.5,1]
[null,3,null,null,null,null,null,null,0,"","","","","","","","",null,null,null,"Jungrinder Grünlandb. Konventionell",null,57,16.399999999999999,58,17,0.85,0.7,0.7,0.6,0.7,"Gülle","Schweinegülle",null,4.1399999999999997,4.4000000000000004,3.5,null,2.2000000000000002,2.7,0.9,0.3,0.3,0,0,2.6,0.8,0.7,1,0.7,0.6,1]
[null,4,null,null,null,null,null,null,0,"","","","","","","","",null,null,null,"Jungrinder Grünlandb. Extensiv",null,54,16,53,16,0.85,0.7,0.7,0.6,0.7,null,"Sauen/Ferkelgülle",null,2.88,2.9,2.5,null,1.6,1.9,null,0.2,0.2,0,0,0.3,0.8,0.7,1,0.7,0.6,1]
[null,5,null,null,null,null,null,null,0,"","","","","","","","",null,null,null,"Jungrinder Ackerbaub. mit Weide",null,48,15.5,48,15,0.85,0.7,0.7,0.6,0.7,0,"Mischgülle",null,6.8114999999999997,3.9,2.5,null,1.9,4,null,0.4,0.4,0,0,0.5,0.8,0.7,1,0.7,0.6,1]
[null,6,null,null,null,null,null,null,0,"","","","","","","","",null,null,null,"Jungrinder Ackerbaub. Stallhaltung",null,45,15,43,14,0.85,0.7,0.7,0.6,0.7,0.1,"Jauche Schwein",null,1.18,1.3,1,null,0.1,2.5,null,0.1,0.1,0,0,0.4,0.7,0.6,1,0.9,0.9,1]
[null,7,null,null,null,null,null,null,0,"","","","","","","","",null,null,null,"Milch mittl. u. schwere R. Grünl. mit Weide 6000 kg",null,114,36,108,33,0.85,0.7,0.7,0.6,0.7,0.2,"Jauche Rimd",null,1.18,1.3,1,null,0.1,2.5,null,0.1,0.1,{"$f":"-AL14","v":0},{"$f":"-AL14","v":0},0.4,0.7,0.6,1,0.9,0.9,1]
[null,8,null,null,null,null,null,null,0,"","","","","","","","",null,null,null,"Milch mittl. u. schwere R. Grünl. mit Weide 8000 kg",null,129,43,111,34,0.85,0.7,0.7,0.6,0.7,0.3,"Rindermist",null,23.3,0.6,0.1,null,0.3,0.8,0.2,0.1,0.1,0,0,0.8,0.7,0.6,1,0.25,0.25,1]
[null,9,null,null,null,null,null,null,0,"","","","","","","","",null,null,null,"Milch mittl. u. schwere R. Grünl. mit Weide 10000 kg",null,143,47,113,36,0.85,0.7,0.7,0.6,0.7,0.4,"Schweinemist",null,22.4,0.8,0.1,null,0.7,0.6,0.3,0.1,0.1,0,0,0.5,0.7,0.6,1,0.3,0.3,1]
[null,10,null,null,null,null,null,null,0,"","","","","","","","",null,null,null,"Milch mittl. u. schwere R. Grünl. ohne Weide 6000 kg",null,109,37,98,31,0.85,0.7,0.7,0.6,0.7,0.5,"Mischmist",null,26.6,0.6,null,null,0.3,0.9,null,0.1,0.1,0,0,0.6,0.7,0.6,1,0.3,0.3,1]
[null,null,null,null,null,null,null,null,"Summe",{"$f":"SUM(J8:J17)","v":0},null,null,null,null,{"$f":"SUM(O8:O17)","v":0},{"$f":"SUM(P8:P17)","v":0},{"$f":"SUM(Q8:Q17)","v":0},null,null,null,"Milch mittl. u. schwere R. Grünl. ohne Weide 8000 kg",null,124,43,98,31,0.85,0.7,0.7,0.6,0.7,0.6,"Schaf/Ziegenmist",null,32.9,0.9,0.1,null,0.5,1.3,0.3,0.1,0.1,0,0,2.2000000000000002,0.55000000000000004,0.5,1,0.25,0.25,1]
[null,null,null,null,null,null,null,null,null,null,null,null,null,null,null,null,null,null,null,null,"Milch mittl. u. schwere R. Grünl. ohne Weide 10000 kg",null,141,48,101,33,0.85,0.7,0.7,0.6,0.7,0.7,"Pferdemist",null,33.4,0.4,null,null,0.3,0.9,0.2,0.1,0.1,0,0,1.2,0.55000000000000004,0.5,1,0.25,0.25,1]
[null,null,null,null,null,null,null,null,null,null,"kg N","kg P2O5",null,null,null,null,null,null,null,null,"Milch mittl. u. schwere R. Grünl. ohne Weide 12000 kg",null,159,55,101,34,0.85,0.7,0.7,0.6,0.7,0.8,"HTK",null,28.6,1.6,0.3,null,1.1000000000000001,1,0.4,0.1,0.1,{"$f":"-AL20","v":0},{"$f":"-AL20","v":0},4.2,0.6,0.5,1,0.6,0.6,1]
[null,null,null,null,null,null,"Nährstoffanfall aus der Weidehaltung",null,null,null,{"$f":"Q18","v":0},{"$f":"P18","v":0},null,null,null,null,null,null,null,null,"Milch Ackerfutterb.mit Weide 6000 kg",null,103,37,86,28,0.85,0.7,0.7,0.6,0.7,0.9,"Geflügelmist <40% TS",null,28.6,1.6,0.3,null,1.1000000000000001,1,0.4,0.1,0.1,0,0,4.2,0.6,0.5,1,0.3,0.3,1]
[null,null,null,null,null,null,null,null,null,null,null,null,null,null,null,null,null,null,null,null,"Milch Ackerfutterb.mit Weide 8000 kg",null,117,42,93,31,0.85,0.7,0.7,0.6,0.7,1,"Geflügelmist >40% TS",null,55.3,2.6,0.4,null,1.8,2,0.7,0.3,0.3,0,0,8.9,0.6,0.5,1,0.3,0.3,1]
[null,null,null,null,null,null,null,null,null,null,null,null,null,null,null,null,null,null,null,null,"Milch Ackerfutterb.mit Weide 10000 kg",null,134,47,98,33,0.85,0.7,0.7,0.6,0.7,null,"Weizenstroh",null,null,0.5,null,null,0.3,null,null,null,null,0,0,null,null,1,1]
[null,"Aufnahme von organischen Düngern in den Betrieb",null,null,null,"m³ \noder t","kg/m3 oder t",null,"kg Betrieb",null,"170 kg N/ha Regel",null,null,null,null,null,null,null,null,null,"Milch Ackerfutterb.mit Weide 12000 kg",null,153,52,101,34,0.85,0.7,0.7,0.6,0.7,null,"Gerstenstroh",null,null,0.5,null,null,0.3,null,null,null,null,0,0,null,null,1,1]
[null,null,null,null,null,null,"N","P2O5","N","P2O5","% N","kg N",null,null,null,null,null,null,null,null,"Milch Ackerfutterb. ohne Weide mit Heu 6000 kg",null,100,36,77,27,0.85,0.7,0.7,0.6,0.7,null,"Roggens/Triticalestroh",null,null,0.5,null,null,0.3,null,null,null,null,0,0,null,null,1,1]
[null,1,null,null,null,null,{"$f":"IF($C26=\"\",\"\",VLOOKUP($C26,organische_Dünger,4,0))","v":""},{"$f":"IF($C26=\"\",\"\",VLOOKUP($C26,organische_Dünger,7,0))","v":""},{"$f":"IF(C26=\"\",\"\",G26*F26)","v":""},{"$f":"IF(C26=\"\",\"\",H26*F26)","v":""},{"$f":"IF($C26=\"\",\"\",VLOOKUP($C26,organische_Dünger,20,0))","v":""},{"$f":"IF(C26=\"\",\"\",K26*I26)","v":""},null,null,null,null,null,null,null,null,"Milch Ackerfutterb. ohne Weide mit Heu 8000 kg",null,115,42,84,29,0.85,0.7,0.7,0.6,0.7,null,"Kompost",null,55,1.2,0.1,null,0.4,0.8,null,0.1,0.1,0,0,null,1,1,1,0.05,0.05,1]
[null,2,null,null,null,null,"","","","","","",null,null,null,null,null,null,null,null,"Milch Ackerfutterb. ohne Weide mit Heu 10000 kg",null,133,47,89,31,0.85,0.7,0.7,0.6,0.7,null,"Bioabfallkompost",null,55.1,1.6,0,null,0.5,1.2,0.8,0.2,0.2,0,0,3.4,1,1,1,0.05,0.05,1]
[null,3,null,null,null,null,"","","","","","",null,null,null,null,null,null,null,null,"Milch Ackerfutterb. ohne Weide mit Heu 12000 kg",null,152,52,94,32,0.85,0.7,0.7,0.6,0.7,null,"Grüngutkompost",null,50.9,1.2,null,null,0.3,0.8,0.8,null,null,0,0,null,1,1,1,0.03,0.03,1]
[null,4,null,null,null,null,"","","","","","",null,null,null,null,null,null,null,null,"Milch leichte R. Ackerfutterbaub. 5000 kg",null,76,27,68,22,0.85,0.7,0.7,0.6,0.7,null,"Klärschlammkompost",null,29.9,1,0.2,null,1.3,0.2,0.3,0.2,0.2,0,0,1.4,1,1,1,0.3,0.3,1]
[null,5,null,null,null,null,"","","","","","",null,null,null,null,null,null,null,null,"Milch leichte R. Ackerfutterbaub. 7000 kg",null,91,33,75,25,0.85,0.7,0.7,0.6,0.7,null,"Klärschlamm, 0-5 % TS",null,2.76,1.3,0.4,null,1.3,0.2,0.3,0.2,0.2,0,0,1,1,1,1,0.3,0.3,1]
[null,6,null,null,null,null,"","","","","","",null,null,null,null,null,null,null,null,"Milch leichte R. Ackerfutterbaub. 9000 kg",null,111,42,80,27,0.85,0.7,0.7,0.6,0.7,null,"Klärschlamm, 5-10% TS",null,6.5586500000000001,1.8,0.4,null,1.9,0.3,0.7,0.5,0.5,0,0,2.2999999999999998,1,1,1,0.3,0.3,1]
[null,7,null,null,null,null,"","","","","","",null,null,null,null,null,null,null,null,"Mast von 50 bis 350 kg LM; 1,3 Umtriebe p.a.",null,31,12.7,7,2.9,0.85,0.7,0.7,0.6,0.7,null,"Klärschlamm, 10-20% TS",null,15.9,7.5,0.7,null,5.2,0.7,1.5,1.2,1.2,0,0,6.6,1,1,1,0.25,0.25,1]
[null,8,null,null,null,null,"","","","","","",null,null,null,null,null,null,null,null,"Mast 50 bis 250 kg LM; 2,1 Umtriebe p.a.",null,13,6.5,0.6,0.4,0.85,0.7,0.7,0.6,0.7,null,"Klärschlamm, 20-30% TS",null,24.5,10,2,null,16,1,3,2,2,0,0,16,1,1,1,0.25,0.25,1]
[null,9,null,null,null,null,"","","","","","",null,null,null,null,null,null,null,null,"Mast 50 bis 260 kg LM; 1,9 Umtriebe p.a.",null,15.9,7.3,0.3,0.1,0.85,0.7,0.7,0.6,0.7,null,"Klärschlamm, 30-40% TS",null,33.85,8,1,null,15,1,4,2,2,0,0,54,1,1,1,0.25,0.25,1]
[null,10,null,null,null,null,"","","","","","",null,null,null,null,null,null,null,null,"Mast 80 bis 210 kg LM; 2,7 Umtriebe p.a.",null,15.7,5.4,6,2.2999999999999998,0.85,0.7,0.7,0.6,0.7,null,"Klärschlamm, 40-80% TS",null,42.4,8,1,null,10,1,4,3,3,0,0,84,1,1,1,0.25,0.25,1]
[null,null,null,null,null,null,null,null,null,null,"Summe",{"$f":"SUM(L26:L35)","v":0},null,null,null,null,null,null,null,null,"Mast 80 bis 210 kg LM; 2,7 Umtriebe p.a. N/P reduziert",null,14.6,4.5,6,2.2999999999999998,0.85,0.7,0.7,0.6,0.7,null,"Klärschlamm, > 80% TS",null,95.88,36,6,null,78,3,9,10,10,0,0,49,1,1,1,0.25,0.25,1]
[null,null,null,null,null,null,null,null,null,null,null,null,null,null,null,null,null,null,null,null,"Bullenmast bis 675 kg LM (19 Monate) ab Kalb 45 kg LM",null,36.6,14.2,19.600000000000001,7.9,0.85,0.7,0.7,0.6,0.7,null,"Biogasgülle",null,6.92,4.7,3.5,null,1.9,4.9000000000000004,0.8,0.5,0.5,0,0,4,0.95,0.85,1,0.6,0.5,1]
[null,null,null,null,null,null,null,null,null,null,null,null,null,null,null,null,null,null,null,null,"Bullenmast bis 750 kg LM ab Kalb 45 kg LM",null,39.1,14.3,20.2,8.1,0.85,0.7,0.7,0.6,0.7,null,"Biogasgülle, flüssig",null,4.8499999999999996,6.7,4.5999999999999996,null,0.9,3,0.4,0.4,0.4,0,0,2.2000000000000002,0.95,0.85,1,0.6,0.5,1]
[null,"Abgabe von organischen Düngern ",null,null,null,"m³ \noder t","kg/m3 oder t",null,"kg Betrieb",null,"170 kg N/ha Regel",null,null,null,null,null,null,null,null,null,"Bullenmast bis 750 kg LM ab Kalb 45 kg LM",null,39.1,14.3,20.2,8.1,0.85,0.7,0.7,0.6,0.7,null,"Biogasgülle, fest",null,22.9,8,1,null,7,3,3,2,2,0,0,22,0.95,0.85,1,0.3,0.3,1]
[null,null,null,null,null,null,"N","P2O5","N","P2O5","% N","kg N",null,null,null,null,null,null,null,null,"Bullenmast bis 750 kg LM ab Kalb 80 kg LM",null,40.700000000000003,14.7,21,8.5,0.85,0.7,0.7,0.6,0.7,null,{"$f":"B62","v":0},{"$f":"E62","v":0},{"$f":"F62","v":0},{"$f":"G62","v":0},{"$f":"H62","v":0},null,{"$f":"I62","v":0},{"$f":"J62","v":0},{"$f":"K62","v":0},{"$f":"L62","v":0},null,null,null,null,null,null,null,null,null,1]
[null,1,null,null,null,null,{"$f":"IF($C41=\"\",\"\",VLOOKUP($C41,organische_Dünger,4,0))","v":""},{"$f":"IF($C41=\"\",\"\",VLOOKUP($C41,organische_Dünger,7,0))","v":""},{"$f":"IF(C41=\"\",\"\",G41*F41)","v":""},{"$f":"IF(C41=\"\",\"\",H41*F41)","v":""},{"$f":"IF($C41=\"\",\"\",VLOOKUP($C41,organische_Dünger,20,0))","v":""},{"$f":"IF(C41=\"\",\"\",K41*I41)","v":""},null,null,null,null,null,null,null,null,"Bullenmast bis 750 kg LM ab Kalb 210 kg LM",null,41.3,14.8,22.4,9,0.85,0.7,0.7,0.6,0.7,null,{"$f":"B63","v":0},{"$f":"E63","v":0},{"$f":"F63","v":0},{"$f":"G63","v":0},{"$f":"H63","v":0},null,{"$f":"I63","v":0},{"$f":"J63","v":0},{"$f":"K63","v":0},{"$f":"L63","v":0},null,null,null,null,null,null,null,null,null,1]
[null,2,null,null,null,null,"","","","","","",null,null,null,null,null,null,null,null,"männl. Rinder bis 6 Monate",null,22,7.6,17.5,5.8,0.85,0.7,0.7,0.6,0.7,null,0,0,0,0,0,null,0,0,0,0,null,null,null,null,null,null,null,null,null,1]
[null,3,null,null,null,null,"","","","","","",null,null,null,null,null,null,null,null,"männl. Rinder über 6 Monate bis 12 Monate",null,37.5,14.9,20,8,0.85,0.7,0.7,0.6,0.7,null,0,0,0,0,0,null,0,0,0,0,null,null,null,null,null,null,null,null,null,1]
[null,4,null,null,null,null,"","","","","","",null,null,null,null,null,null,null,null,"männl. Rinder über 12 Monate bis 24 Monate (Zuchtbullen)",null,54.5,20.5,28.5,11.5,0.85,0.7,0.7,0.6,0.7,null,0,0,0,0,0,null,0,0,0,0,null,null,null,null,null,null,null,null,null,1]
[null,5,null,null,null,null,"","","","","","",null,null,null,null,null,null,null,null,"männl. Rinder über 24 Monate (Zuchtbullen)",null,64,21,61,20,0.85,0.7,0.7,0.6,0.7,null,0,0,0,0,0,null,0,0,0,0,null,null,null,null,null,null,null,null,null,1]
[null,6,null,null,null,null,"","","","","","",null,null,null,null,null,null,null,null,"Mutterkuh 500 kg LM; 0,9 Kalb je Kuh p.a.; 6 Monate Säugezeit",null,88,26,90,27,0.85,0.7,0.7,0.6,0.7]
[null,7,null,null,null,null,"","","","","","",null,null,null,null,null,null,null,null,"Mutterkuh 700 kg LM; 0,9 Kalb je Kuh p.a.; 9 Monate Säugezeit (230 kg Abs.gew.)",null,105,31,108,32,0.85,0.7,0.7,0.6,0.7]
[null,8,null,null,null,null,"","","","","","",null,null,null,null,null,null,null,null,"Mutterkuh 700 kg LM; 0,9 Kalb je Kuh p.a.; (340 kg Abs.gew.)",null,114,33,120,36,0.85,0.7,0.7,0.6,0.7]
[null,9,null,null,null,null,"","","","","","",null,null,null,null,null,null,null,null,null,null,null,null,null,null,null,null,null,null,0.7]
[null,10,null,null,null,null,"","","","","","",null,null,null,null,null,null,null,null,"Sauenh. Ferkelaufzucht bis 8 kg, 22 Ferkel, Uni.Futter","je Sauenplatz und Jahr",27.1,12.6,null,null,0.8,0.7,0.7,0.6,0.7]
[null,null,null,null,null,null,"","","","","Summe",{"$f":"SUM(L41:L50)","v":0},null,null,null,null,null,null,null,null,"Sauenh. Ferkelaufzucht bis 8 kg, 22 Ferkel, N/P red.Futter","je Sauenplatz und Jahr",24,11,null,null,0.8,0.7,0.7,0.6,0.7]
[null,null,null,null,null,null,null,null,null,null,null,null,null,null,null,null,null,null,null,null,"Sauenh. Ferkelaufzucht bis 8 kg, 22 Ferkel, N/P stark red.Futter","je Sauenplatz und Jahr",23,10.3,null,null,0.8,0.7,0.7,0.6,0.7]
[null,null,null,null,null,null,"Gesamt","kg Stickstoff im Betrieb",null,null,null,{"$f":"J18","v":0},null,null,null,null,null,null,null,null,"Sauenh. Ferkelaufzucht bis 8 kg, 25 Ferkel, Uni.Futter","je Sauenplatz und Jahr",27.3,12.6,null,null,0.8,0.7,0.7,0.6,0.7]
[null,null,null,null,null,null,null," + Aufnahme OD im Betrieb",null,null,null,{"$f":"L36","v":0},null,null,null,null,null,null,null,null,"Sauenh. Ferkelaufzucht bis 8 kg, 25 Ferkel, N/P red.Futter","je Sauenplatz und Jahr",24.1,11.2,null,null,0.8,0.7,0.7,0.6,0.7]
[null,null,null,null,null,null,null," - Abgabe aus dem Betrieb",null,null,null,{"$f":"L51","v":0},null,null,null,null,null,null,null,null,"Sauenh. Ferkelaufzucht bis 8 kg, 25 Ferkel, N/P stark red.Futter","je Sauenplatz und Jahr",23.1,10.3,null,null,0.8,0.7,0.7,0.6,0.7]
[null,null,null,null,null,null,null,"Summe",null,null,null,{"$f":"L53+L54-L55","v":0},null,null,null,null,null,null,null,null,"Sauenh. Ferkelaufzucht bis 8 kg, 28 Ferkel, Uni.Futter","je Sauenplatz und Jahr",27.5,12.8,null,null,0.8,0.7,0.7,0.6,0.7]
[null,null,null,null,null,null,null,"Acker- und Grünlandfläche ha",null,null,null,{"$f":"L4","v":0},null,null,null,null,null,null,null,null,"Sauenh. Ferkelaufzucht bis 8 kg, 28 Ferkel, N/P red.Futter","je Sauenplatz und Jahr",24.2,11.2,null,null,0.8,0.7,0.7,0.6,0.7]
[null,null,null,null,null,null,null,"Stickstoff aus org. Düngern kg/ha",null,null,null,{"$f":"IF(L57=0,\"\",L56/L57)","v":""},null,null,null,null,null,null,null,null,"Sauenh. Ferkelaufzucht bis 8 kg, 28 Ferkel, N/P stark red.Futter","je Sauenplatz und Jahr",23.2,10.3,null,null,0.8,0.7,0.7,0.6,0.7]
[null,null,null,null,null,null,null,null,null,null,null,null,null,null,null,null,null,null,null,null,"Sauenh. Ferkelaufzucht bis 28 kg, 22 Ferkel, Uni.Futter","je Sauenplatz und Jahr",39.200000000000003,17.2,null,null,0.8,0.7,0.7,0.6,0.7]
[null,"eigene org. Dünger",null,null,"€/dt","TS","N","NH4-N","P2O5","K2O","MgO","S",null,null,null,null,null,null,null,null,"Sauenh. Ferkelaufzucht bis 28 kg, 22 Ferkel, N/P red.Futter","je Sauenplatz und Jahr",35.1,15.3,null,null,0.8,0.7,0.7,0.6,0.7]
[null,null,null,null,null,"%","kg/m³ o. t","kg/m³ o. t","kg/m³ o. t","kg/m³ o. t","kg/m³ o. t","kg/m³ o. t",null,null,null,null,null,null,null,null,"Sauenh. Ferkelaufzucht bis 28 kg, 22 Ferkel, N/P stark red.Futter","je Sauenplatz und Jahr",33.5,14,null,null,0.8,0.7,0.7,0.6,0.7]
[null,null,null,null,null,null,null,null,null,null,null,null,null,null,null,null,null,null,null,null,"Sauenh. Ferkelaufzucht bis 28 kg, 25 Ferkel, Uni.Futter","je Sauenplatz und Jahr",41.1,17.899999999999999,null,null,0.8,0.7,0.7,0.6,0.7]
[null,null,null,null,null,null,null,null,null,null,null,null,null,null,null,null,null,null,null,null,"Ferkelaufzucht bis 28 kg, 25 Ferkel, N/P red.Futter","je Sauenplatz und Jahr",36.799999999999997,16,null,null,0.8,0.7,0.7,0.6,0.7]
[null,null,null,null,null,null,null,null,null,null,null,null,null,null,null,null,null,null,null,null,"Ferkelaufzucht bis 28 kg, 25 Ferkel, N/P stark red.Futter","je Sauenplatz und Jahr",35,14.7,null,null,0.8,0.7,0.7,0.6,0.7]
[null,null,null,null,null,null,null,null,null,null,null,null,null,null,null,null,null,null,null,null,"Ferkelaufzucht bis 28 kg, 28 Ferkel, Uni.Futter","je Sauenplatz und Jahr",42.9,18.600000000000001,null,null,0.8,0.7,0.7,0.6,0.7]
[null,null,null,null,null,null,null,null,null,null,null,null,null,null,null,null,null,null,null,null,"Ferkelaufzucht bis 28 kg, 28 Ferkel, N/P red.Futter","je Sauenplatz und Jahr",38.4,16.7,null,null,0.8,0.7,0.7,0.6,0.7]
[null,null,null,null,null,null,null,null,null,null,null,null,null,null,null,null,null,null,null,null,"Ferkelaufzucht bis 28 kg, 28 Ferkel, N/P stark red.Futter","je Sauenplatz und Jahr",36.6,15.1,null,null,0.8,0.7,0.7,0.6,0.7]
[null,null,null,null,null,null,null,null,null,null,null,null,null,null,null,null,null,null,null,null,"spez. Ferkelaufzucht 450 g tgl. Zunah. 8 bis 28 kg LM Universalfutter ","je Ferkelplatz und Jahr",3.8,1.4,null,null,0.8,0.7,0.7,0.6,0.7]
[null,null,null,null,null,null,null,null,null,null,null,null,null,null,null,null,null,null,null,null,"spez. Ferkelaufzucht 450 g tgl. Zunah. ab 8 bzw. 15 kg LM N/P red. Futter","je Ferkelplatz und Jahr",3.6,1.4,null,null,0.8,0.7,0.7,0.6,0.7]
[null,null,null,null,null,null,null,null,null,null,null,null,null,null,null,null,null,null,null,null,"spez. Ferkelaufzucht 450 g tgl. Zunah. ab 8 bzw. 15 kg LM N/P stark red. Futter","je Ferkelplatz und Jahr",3.4,1.1000000000000001,null,null,0.8,0.7,0.7,0.6,0.7]
[null,null,null,null,null,null,null,null,null,null,null,null,null,null,null,null,null,null,null,null,"spez. Ferkelaufzucht 500 g tgl. Zunah.8 bis 28 kg LM Universalfutter","je Ferkelplatz und Jahr",4.2,1.6,null,null,0.8,0.7,0.7,0.6,0.7]
[null,null,null,null,null,null,null,null,null,null,null,null,null,null,null,null,null,null,null,null,"spez. Ferkelaufzucht 500 g tgl. Zunah.ab 8 bzw. 15 kg LM N/P red. Futter","je Ferkelplatz und Jahr",3.8,1.4,null,null,0.8,0.7,0.7,0.6,0.7]
[null,null,null,null,null,null,null,null,null,null,null,null,null,null,null,null,null,null,null,null,"spez. Ferkelaufzucht 500 g tgl. Zunah.ab 8 bzw. 15 kg LM N/P stark red. Futter","je Ferkelplatz und Jahr",3.6,1.4,null,null,0.8,0.7,0.7,0.6,0.7]
[null,null,null,null,null,null,null,null,null,null,null,null,null,null,null,null,null,null,null,null,"Jungsauen spez. Ferkelaufzucht 28 bis 115 kg LM; 180 kg Zuwachs je Platz, Universalfutter","je Jungsauenplatz und Jahr",10.8,5.5,null,null,0.8,0.7,0.7,0.6,0.7]
[null,null,null,null,null,null,null,null,null,null,null,null,null,null,null,null,null,null,null,null,"Jungsauen 29 bis 115 kg LM; 180 kg Zuwachs je Platz N/P Reduziert","je Jungsauenplatz und Jahr",9,4.5999999999999996,null,null,0.8,0.7,0.7,0.6,0.7]
[null,null,null,null,null,null,null,null,null,null,null,null,null,null,null,null,null,null,null,null,"Jungsauen 95 bis 135 kg LM; 240 kg Zuwachs je Platz p.a. Universalfutter","je Jungsauenplatz und Jahr",15.4,8.5,null,null,0.8,0.7,0.7,0.6,0.7]
[null,null,null,null,null,null,null,null,null,null,null,null,null,null,null,null,null,null,null,null,"Jungsauen96 bis 135 kg LM; 240 kg Zuwachs je Platz p.a. N/P Reduziert","je Jungsauenplatz und Jahr",13.3,7.5,null,null,0.8,0.7,0.7,0.6,0.7]
[null,null,null,null,null,null,null,null,null,null,null,null,null,null,null,null,null,null,null,null,"Mast 700 g Tageszunahme; 210 kg Zuwachs Universalfutter","je Mastplatz und Jahr",11.1,4.8,null,null,0.8,0.7,0.7,0.6,0.7]
[null,null,null,null,null,null,null,null,null,null,null,null,null,null,null,null,null,null,null,null,"Mast 700 g Tageszunahme; 210 kg Zuwachs N/P reduziert","je Mastplatz und Jahr",10.7,4.0999999999999996,null,null,0.8,0.7,0.7,0.6,0.7]
[null,null,null,null,null,null,null,null,null,null,null,null,null,null,null,null,null,null,null,null,"Mast 700 g Tageszunahme; 210 kg Zuwachs stark N/P reduziert","je Mastplatz und Jahr",9.6,3.7,null,null,0.8,0.7,0.7,0.6,0.7]
[null,null,null,null,null,null,null,null,null,null,null,null,null,null,null,null,null,null,null,null,"Mast 750 g Tageszunahme; 223 kg Zuwachs Universalfutter","je Mastplatz und Jahr",11.4,4.8,null,null,0.8,0.7,0.7,0.6,0.7]
[null,null,null,null,null,null,null,null,null,null,null,null,null,null,null,null,null,null,null,null,"Mast 750 g Tageszunahme; 223 kg Zuwachs N/P reduziert","je Mastplatz und Jahr",10.9,4.0999999999999996,null,null,0.8,0.7,0.7,0.6,0.7]
[null,null,null,null,null,null,null,null,null,null,null,null,null,null,null,null,null,null,null,null,"Mast 750 g Tageszunahme; 223 kg Zuwachs stark N/P reduziert","je Mastplatz und Jahr",9.8000000000000007,3.9,null,null,0.8,0.7,0.7,0.6,0.7]
[null,null,null,null,null,null,null,null,null,null,null,null,null,null,null,null,null,null,null,null,"Mast 850 g Tageszunahme; 244 kg Zuwachs Universalfutter","je Mastplatz und Jahr",12.2,5,null,null,0.8,0.7,0.7,0.6,0.7]
[null,null,null,null,null,null,null,null,null,null,null,null,null,null,null,null,null,null,null,null,"Mast 850 g Tageszunahme; 244 kg Zuwachs N/P reduziert","je Mastplatz und Jahr",11.7,4.4000000000000004,null,null,0.8,0.7,0.7,0.6,0.7]
[null,null,null,null,null,null,null,null,null,null,null,null,null,null,null,null,null,null,null,null,"Mast 850 g Tageszunahme; 244 kg Zuwachs stark N/P reduziert","je Mastplatz und Jahr",10.6,3.9,null,null,0.8,0.7,0.7,0.6,0.7]
[null,null,null,null,null,null,null,null,null,null,null,null,null,null,null,null,null,null,null,null,"Mast 950 g Tageszunahme; 267 kg Zuwachs Universalfutter","je Mastplatz und Jahr",12.5,5,null,null,0.8,0.7,0.7,0.6,0.7]
[null,null,null,null,null,null,null,null,null,null,null,null,null,null,null,null,null,null,null,null,"Mast 950 g Tageszunahme; 267 kg Zuwachs N/P reduziert","je Mastplatz und Jahr",12,4.4000000000000004,null,null,0.8,0.7,0.7,0.6,0.7]
[null,null,null,null,null,null,null,null,null,null,null,null,null,null,null,null,null,null,null,null,"Mast 950 g Tageszunahme; 267 kg Zuwachs stark N/P reduziert","je Mastplatz und Jahr",10.8,3.9,null,null,0.8,0.7,0.7,0.6,0.7]
[]
[]
[]
[null,null,null,null,null,null,null,null,null,null,null,null,null,null,null,null,null,null,null,null,"Reitpferde 500 – 600 kg LM Stallhaltung",null,51.1,23.4,null,null,null,0.55000000000000004,null,0.5,0.55000000000000004]
[null,null,null,null,null,null,null,null,null,null,null,null,null,null,null,null,null,null,null,null,"Reitpferde 500 – 600 kg LM Stall-/Weidehaltung",null,53.6,23.4,null,null,null,0.55000000000000004,null,0.5,0.55000000000000004]
[null,null,null,null,null,null,null,null,null,null,null,null,null,null,null,null,null,null,null,null,"Reitponys 300 kg LM; leichte Arbeit Stallhaltung",null,34.9,16.5,null,null,null,0.55000000000000004,null,0.5,0.55000000000000004]
[null,null,null,null,null,null,null,null,null,null,null,null,null,null,null,null,null,null,null,null,"Reitponys 300 kg LM; leichte Arbeit SStall-/Weidehaltung",null,33.4,15.3,null,null,null,0.55000000000000004,null,0.5,0.55000000000000004]
[null,null,null,null,null,null,null,null,null,null,null,null,null,null,null,null,null,null,null,null,"Großpferd 600 kg LM; Stall-/Weidehaltung; 0,5 Fohlen p.a.",null,63.5,28,null,null,null,0.55000000000000004,null,0.5,0.55000000000000004]
[null,null,null,null,null,null,null,null,null,null,null,null,null,null,null,null,null,null,null,null,"Pony 350 kg LM; Stall-/Weidehaltung; 0,5 Fohlen p.a.",null,42.3,18.399999999999999,null,null,null,0.55000000000000004,null,0.5,0.55000000000000004]
[null,null,null,null,null,null,null,null,null,null,null,null,null,null,null,null,null,null,null,null,"Großpferd; 365 kg Zuwachs; Stall/Weidehaltung; 6. - 36. Monat",null,44.5,18.899999999999999,null,null,null,0.55000000000000004,null,0.5,0.55000000000000004]
[null,null,null,null,null,null,null,null,null,null,null,null,null,null,null,null,null,null,null,null,"Kleinpferde 300-500 kg LG, Stall-/Weidehaltung, leichte Arbeit",null,43.5,19.350000000000001,null,null,null,0.55000000000000004,null,0.5,0.55000000000000004]
[null,null,null,null,null,null,null,null,null,null,null,null,null,null,null,null,null,null,null,null,"Zuchtstuten Kleinpferde 350-550 kg, 0,5 Fohlen/Jahr Stall-/Weidehaltung\n",null,52.9,23.2,null,null,null,0.55000000000000004,null,0.5,0.55000000000000004]
[null,null,null,null,null,null,null,null,null,null,null,null,null,null,null,null,null,null,null,null,"Aufzuchtpferde Kleinpferde, 6.-36. Monat, Stall-/Weidehaltung",null,38.049999999999997,16.2,null,null,null,0.55000000000000004,null,0.5,0.55000000000000004]
[null,null,null,null,null,null,null,null,null,null,null,null,null,null,null,null,null,null,null,null,"Pony; 150 kg Zuwachs; Stall-/Weidehaltung; 6. - 36. Monat",null,31.6,13.5,null,null,null,0.55000000000000004,null,0.5,0.55000000000000004]
[]
[]
[null,null,null,null,null,null,null,null,null,null,null,null,null,null,null,null,null,null,null,null,"Schaf 1,5 Lämmer/Schaf; 40 kg Zuwachs je Lamm, konventionell",null,20.100000000000001,6.2,18.2,5.3,null,0.55000000000000004,null,0.5,0.55000000000000004]
[null,null,null,null,null,null,null,null,null,null,null,null,null,null,null,null,null,null,null,null,"Schaf 1,1 Lämmer/Schaf; 40 kg Zuwachs je Lamm exensiv",null,17.600000000000001,5,17.3,5,null,0.55000000000000004,null,0.5,0.55000000000000004]
[null,null,null,null,null,null,null,null,null,null,null,null,null,null,null,null,null,null,null,null,"Ziege 800 kg Milch/Ziege p.a.; 1,5 Lämmer je Ziege; 16 kg Zuwachs/Lamm mit Nachzucht",null,15.2,5.7,11.7,3.8,null,0.55000000000000004,null,0.5,0.55000000000000004]
[null,null,null,null,null,null,null,null,null,null,null,null,null,null,null,null,null,null,null,null,"Ziege 45 kg Zuwachs je Produktionseinheit (1 Alttier mit 0,85 Kalb)",null,null,null,21.3,6.1,null,0.55000000000000004,null,0.5,0.55000000000000004]
[null,null,null,null,null,null,null,null,null,null,null,null,null,null,null,null,null,null,null,null,"Lämmer, Schafe bis 12 Monate",null,5.9,1.9,5.4,1.7,null,0.55000000000000004,null,0.5,0.55000000000000004]
[null,null,null,null,null,null,null,null,null,null,null,null,null,null,null,null,null,null,null,null,"Mutterschafe ohne Lamm, andere Schafe",null,14.2,4.3,12.4,3.6,null,0.55000000000000004,null,0.5,0.55000000000000004]
[null,null,null,null,null,null,null,null,null,null,null,null,null,null,null,null,null,null,null,null,"andere Ziegen",null,15.2,5.7,11.7,3.8,null,0.55000000000000004,null,0.5,0.55000000000000004]
[null,null,null,null,null,null,null,null,null,null,null,null,null,null,null,null,null,null,null,null,null,null,null,null,null,null,null,null,null,null,0.55000000000000004]
[null,null,null,null,null,null,null,null,null,null,null,null,null,null,null,null,null,null,null,null,"52 aufgezogene Jungtiere/ Häsin p.a. Aufzucht bis 0,6 kg LM",null,2.6,1.5,null,null,null,0.55000000000000004,null,0.5,0.55000000000000004]
[null,null,null,null,null,null,null,null,null,null,null,null,null,null,null,null,null,null,null,null," 52 aufgezogene Jungtiere/ Häsin p.a.Aufzucht bis 3 kg LM",null,9.6999999999999993,5.4,null,null,null,0.55000000000000004,null,0.5,0.55000000000000004]
[null,null,null,null,null,null,null,null,null,null,null,null,null,null,null,null,null,null,null,null,"Mast 0,6 bis 3 kg LM; 14 kg Zuwachs/Platz",null,0.7,0.4,null,null,null,0.55000000000000004,null,0.5,0.55000000000000004]
[null,null,null,null,null,null,null,null,null,null,null,null,null,null,null,null,null,null,null,null,null,null,null,null,null,null,null,null,null,null,0.55000000000000004]
[null,null,null,null,null,null,null,null,null,null,null,null,null,null,null,null,null,null,null,null,null,null,null,null,null,null,null,null,null,null,0.55000000000000004]
[null,null,null,null,null,null,null,null,null,null,null,null,null,null,null,null,null,null,null,null,"Fleischerzeugung; 45 kg Zuwachs (1 Alttier mit 0,85 Kalb)",null,21.6,6.2,null,null,null,0.55000000000000004,null,0.5,0.55000000000000004]
[null,null,null,null,null,null,null,null,null,null,null,null,null,null,null,null,null,null,null,null,null,null,null,null,null,null,null,null,null,null,0.55000000000000004]
[null,null,null,null,null,null,null,null,null,null,null,null,null,null,null,null,null,null,null,null,null,null,null,null,null,null,null,null,null,null,0.55000000000000004]
[null,null,null,null,null,null,null,null,null,null,null,null,null,null,null,null,null,null,null,null,"Junghennenaufzucht 3,5 kg Zuwachs, Standardfutter",null,0.26900000000000002,0.17599999999999999,null,null,null,0.6,null,0.5,0.6]
[null,null,null,null,null,null,null,null,null,null,null,null,null,null,null,null,null,null,null,null,"Junghennenaufzucht 3,5 kg Zuwachs, N-/P-reduziert",null,0.252,0.151,null,null,null,0.6,null,0.5,0.6]
[null,null,null,null,null,null,null,null,null,null,null,null,null,null,null,null,null,null,null,null,"Legehennenhaltung Standardfutter",null,0.76400000000000001,0.39600000000000002,null,null,null,0.6,null,0.5,0.6]
[null,null,null,null,null,null,null,null,null,null,null,null,null,null,null,null,null,null,null,null,"Legehennenhaltung N-/P-reduziert",null,0.73099999999999998,0.34599999999999997,null,null,null,0.6,null,0.5,0.6]
[null,null,null,null,null,null,null,null,null,null,null,null,null,null,null,null,null,null,null,null,"Hähnchenmast, Mast über 39 Tage; Standartfutter",null,0.41299999999999998,0.20799999999999999,null,null,null,0.6,null,0.5,0.6]
[null,null,null,null,null,null,null,null,null,null,null,null,null,null,null,null,null,null,null,null,"Hähnchenmast, 2,6 kg Zuwachs/Tier N-/P-reduziert",null,0.38500000000000001,0.17599999999999999,null,null,null,0.6,null,0.5,0.6]
[null,null,null,null,null,null,null,null,null,null,null,null,null,null,null,null,null,null,null,null,"Hähnchenmast, Mast über 34 bis 38 Tage; Standartfutter",null,0.38800000000000001,0.19,null,null,null,0.6,null,0.5,0.6]
[null,null,null,null,null,null,null,null,null,null,null,null,null,null,null,null,null,null,null,null,"Hähnchenmast, 2,3 kg Zuwachs/Tier N-/P-reduziert",null,0.35699999999999998,0.17399999999999999,null,null,null,0.6,null,0.5,0.6]
[null,null,null,null,null,null,null,null,null,null,null,null,null,null,null,null,null,null,null,null,"Hähnchenmast, Mast über 30 bis 33 Tage; Standartfutter",null,0.32800000000000001,0.17399999999999999,null,null,null,0.6,null,0.5,0.6]
[null,null,null,null,null,null,null,null,null,null,null,null,null,null,null,null,null,null,null,null,"Hähnchenmast, 1,8 kg Zuwachs/Tier N-/P-reduziert",null,0.311,0.153,null,null,null,0.6,null,0.5,0.6]
[null,null,null,null,null,null,null,null,null,null,null,null,null,null,null,null,null,null,null,null,"Hähnchenmast, Mast über 39 Tage; Standartfutter",null,0.26700000000000002,0.14199999999999999,null,null,null,0.6,null,0.5,0.6]
[null,null,null,null,null,null,null,null,null,null,null,null,null,null,null,null,null,null,null,null,"Hähnchenmast, 1,55 kg Zuwachs/Tier N-/P-reduziert",null,0.249,0.121,null,null,null,0.6,null,0.5,0.6]
[null,null,null,null,null,null,null,null,null,null,null,null,null,null,null,null,null,null,null,null,"Hähne, 22,1 kg Zuwachs; bis 21 Wochen Mast (56,4 kg Futterverbrauch je Tier), Standartfutter",null,2.145,1.2090000000000001,null,null,null,0.6,null,0.5,0.6]
[null,null,null,null,null,null,null,null,null,null,null,null,null,null,null,null,null,null,null,null,"Hähne, 22,1 kg Zuwachs; bis 21 Wochen Mast (56,4 kg Futterverbrauch je Tier), N-/P-reduziert",null,1.9910000000000001,0.94099999999999995,null,null,null,0.6,null,0.5,0.6]
[null,null,null,null,null,null,null,null,null,null,null,null,null,null,null,null,null,null,null,null,"Hennen 10,9 kg Zuwachs; 16 Wochen Mast (26,7 kg Futterverbrauch je Tier), Standardfutter",null,1.42,0.77400000000000002,null,null,null,0.6,null,0.5,0.6]
[null,null,null,null,null,null,null,null,null,null,null,null,null,null,null,null,null,null,null,null,"Hennen 10,9 kg Zuwachs; 16 Wochen Mast (26,7 kg Futterverbrauch je Tier), N-/P-reduziert",null,1.3420000000000001,0.54300000000000004,null,null,null,0.6,null,0.5,0.6]
[null,null,null,null,null,null,null,null,null,null,null,null,null,null,null,null,null,null,null,null,"Hähne ab der 6. Woche, Standardfutter",null,2.468,1.3720000000000001,null,null,null,0.6,null,0.5,0.6]
[null,null,null,null,null,null,null,null,null,null,null,null,null,null,null,null,null,null,null,null,"Hähne ab der 6. Woche, N-/P-reduziert",null,2.282,1.044,null,null,null,0.6,null,0.5,0.6]
[null,null,null,null,null,null,null,null,null,null,null,null,null,null,null,null,null,null,null,null,"Hennen ab der 6. Woche, Standardfutter",null,1.6519999999999999,0.92300000000000004,null,null,null,0.6,null,0.5,0.6]
[null,null,null,null,null,null,null,null,null,null,null,null,null,null,null,null,null,null,null,null,"Hennen ab der 6. Woche, N-/P-reduziert",null,1.542,0.72599999999999998,null,null,null,0.6,null,0.5,0.6]
[null,null,null,null,null,null,null,null,null,null,null,null,null,null,null,null,null,null,null,null,"gemischt geschlechtliche Mast; 50 % Hähne und 50% Hennen, Standardfutter",null,1.6519999999999999,0.92300000000000004,null,null,null,0.6,null,0.5,0.6]
[null,null,null,null,null,null,null,null,null,null,null,null,null,null,null,null,null,null,null,null,"gemischt geschlechtliche Mast; 50 % Hähne und 50% Hennen, N-/P-reduziert",null,1.542,0.72599999999999998,null,null,null,0.6,null,0.5,0.6]
[null,null,null,null,null,null,null,null,null,null,null,null,null,null,null,null,null,null,null,null,"Putenaufzucht bis 5 Wochen 20 % Hähne, 50 % Hennen, Standardfutter",null,0.442,0.28899999999999998,null,null,null,0.6,null,0.5,0.6]
[null,null,null,null,null,null,null,null,null,null,null,null,null,null,null,null,null,null,null,null,"Pekingenten, 19,5 kg Zuwachs/Platz p.a.; 6,5 Durchgänge (3,0 kg Zuwachs je Tier)",null,0.60499999999999998,0.34399999999999997,null,null,null,0.6,null,0.5,0.6]
[null,null,null,null,null,null,null,null,null,null,null,null,null,null,null,null,null,null,null,null,"Flugenten 15,4 kg Zuwachs/Platz p.a.; 4 Durchgänge; 2,7 kg weiblich, 5,0 kg männlich (w:m = 1:1)",null,0.57599999999999996,0.36699999999999999,null,null,null,0.6,null,0.5,0.6]
[null,null,null,null,null,null,null,null,null,null,null,null,null,null,null,null,null,null,null,null,"Schnellmast, 5,0 kg Zuwachs/Tier",null,0.23100000000000001,0.13300000000000001,null,null,null,0.6,null,0.5,0.6]
[null,null,null,null,null,null,null,null,null,null,null,null,null,null,null,null,null,null,null,null,"Mittelmast, 6,8 kg Zuwachs/Tier",null,0.70199999999999996,0.38700000000000001,null,null,null,0.6,null,0.5,0.6]
[null,null,null,null,null,null,null,null,null,null,null,null,null,null,null,null,null,null,null,null,"Spät-/Weidemast, 7,8 kg Zuwachs/Tier",null,1.0740000000000001,0.33400000000000002,null,null,null,0.6,null,0.5,0.6]